bitfinex/quotes_BTCUSD_20240727
["timestamp","ask_amount","ask_price","bid_price","bid_amount"]
[1722050949370,0.06602063,67963.0,67961.0,0.293942]
[1722050949587,0.06602063,67963.0,67961.0,0.287942]
[1722050949784,0.06602063,67963.0,67961.0,0.301942]
[1722050949994,0.06602063,67963.0,67962.0,0.147141]
[1722050950173,0.08802751,67964.0,67963.0,0.147138]
[1722050950367,0.08802751,67964.0,67962.0,0.14714]
[1722050950582,0.06604535,67963.0,67962.0,0.14714]
[1722050950786,0.21318335,67963.0,67962.0,0.0801]
[1722050951015,0.147141,67962.0,67961.0,0.02]
[1722050951216,0.441423,67962.0,67961.0,0.007]
[1722050951421,0.735705,67962.0,67961.0,0.007]
[1722050951828,0.441423,67962.0,67961.0,0.007]
[1722050952039,0.147145,67961.0,67956.0,0.227253]
[1722050952249,0.04402608,67959.0,67957.0,0.14715]
[1722050953245,0.04402608,67959.0,67956.0,0.241253]
[1722050953471,0.294303,67957.0,67956.0,0.0941]
[1722050953667,0.207254,67956.0,67955.0,0.000924]
[1722050953873,0.6116046,67956.0,67955.0,0.000924]
[1722050954045,0.95377,67956.0,67955.0,0.000924]
[1722050954283,1.248078,67956.0,67955.0,0.000924]
[1722050954902,0.95377,67956.0,67955.0,0.000924]
[1722050955243,0.95377,67956.0,67955.0,0.001924]
[1722050956321,1.06371043,67956.0,67955.0,0.007924]
[1722050956908,1.27117076,67956.0,67955.0,0.007924]
[1722050957292,1.38108226,67956.0,67955.0,0.007924]
[1722050957910,1.38107744,67956.0,67955.0,0.007924]
[1722050958349,1.27117076,67956.0,67955.0,0.007924]
[1722050959374,1.29426001,67956.0,67955.0,0.007924]
[1722050960221,1.38213796,67956.0,67955.0,0.007924]
[1722050961231,1.08782964,67956.0,67955.0,0.007924]
[1722050961821,0.92992964,67956.0,67955.0,0.007924]
[1722050962023,0.84785407,67956.0,67955.0,0.085324]
[1722050962226,0.78195201,67956.0,67955.0,0.085324]
[1722050962385,0.82588417,67956.0,67955.0,0.085324]
[1722050962790,0.78195201,67956.0,67955.0,0.085324]
[1722050963307,0.82588202,67956.0,67955.0,0.085324]
[1722050964067,0.82573502,67956.0,67955.0,0.085324]
[1722050964632,0.82573406,67956.0,67955.0,0.085324]
[1722050964797,0.5083333,67956.0,67955.0,0.085324]
[1722050965600,0.46440425,67956.0,67955.0,0.085324]
[1722050965810,0.17009625,67956.0,67955.0,0.085324]
[1722050966024,0.46440425,67956.0,67955.0,0.085324]
[1722050966225,0.75871225,67956.0,67955.0,0.085324]
[1722050966427,0.8026413,67956.0,67955.0,0.085324]
[1722050967030,0.75871225,67956.0,67955.0,0.085324]
[1722050967233,0.8026413,67956.0,67955.0,0.085324]
[1722050967656,0.82460583,67956.0,67955.0,0.085324]
[1722050968081,0.78180505,67956.0,67955.0,0.085324]
[1722050968283,0.48749705,67956.0,67955.0,0.085324]
[1722050968459,0.19318905,67956.0,67955.0,0.085324]
[1722050968689,0.23711773,67956.0,67955.0,0.085324]
[1722050969320,0.17009625,67956.0,67955.0,0.085324]
[1722050970418,0.02308925,67956.0,67955.0,0.085324]
[1722050970652,0.06702092,67956.0,67955.0,0.085324]
[1722050971037,0.02308925,67956.0,67955.0,0.085324]
[1722050971685,0.06702387,67956.0,67955.0,0.085324]
[1722050972139,0.02308925,67956.0,67955.0,0.085324]
[1722050972318,0.04618177,67956.0,67955.0,0.085324]
[1722050972726,0.08899074,67956.0,67955.0,0.085324]
[1722050973326,0.23614474,67956.0,67955.0,0.085324]
[1722050973736,0.17024325,67956.0,67955.0,0.085324]
[1722050975983,0.19333573,67956.0,67955.0,0.085324]
[1722050976201,0.28122699,67956.0,67955.0,0.085324]
[1722050976342,0.25813451,67956.0,67955.0,0.085324]
[1722050976787,0.11098051,67956.0,67955.0,0.085324]
[1722050976987,0.02308925,67956.0,67955.0,0.085324]
[1722050977257,0.11098051,67956.0,67955.0,0.085324]
[1722050977452,0.08903739,67956.0,67955.0,0.085324]
[1722050977707,0.08903737,67956.0,67955.0,0.085324]
[1722050978127,0.08903391,67956.0,67955.0,0.085324]
[1722050978317,0.02308925,67956.0,67955.0,0.085324]
[1722050979224,0.11101546,67956.0,67955.0,0.085324]
[1722050979560,0.11101546,67956.0,67955.0,0.079324]
[1722050979775,0.13410786,67956.0,67955.0,0.079324]
[1722050979974,0.13410786,67956.0,67955.0,0.088324]
[1722050980218,0.04618165,67956.0,67955.0,0.528792]
[1722050980418,0.13416409,67956.0,67955.0,0.596192]
[1722050980781,0.11107169,67956.0,67955.0,0.596192]
[1722050980978,0.02308925,67956.0,67955.0,0.596192]
[1722050981189,0.12632656,67956.0,67955.0,0.596192]
[1722050981445,0.12632311,67956.0,67955.0,0.596192]
[1722050982268,0.14831786,67956.0,67955.0,0.890504]
[1722050982459,0.03834412,67956.0,67955.0,0.596192]
[1722050982815,0.12635685,67956.0,67955.0,0.596192]
[1722050983227,0.14831786,67956.0,67955.0,0.596192]
[1722050983676,0.17140923,67956.0,67955.0,0.596192]
[1722050984368,0.03834412,67956.0,67955.0,0.596192]
[1722050984782,0.03834412,67956.0,67955.0,0.890504]
[1722050985000,0.02308925,67956.0,67955.0,0.890504]
[1722050985726,0.02308925,67956.0,67955.0,0.596192]
[1722050986389,0.02308925,67956.0,67955.0,0.890504]
[1722050987566,0.04618062,67956.0,67955.0,0.890504]
[1722050987824,0.06143549,67956.0,67955.0,0.890504]
[1722050989351,0.03834412,67956.0,67955.0,0.890504]
[1722050989576,0.02308925,67956.0,67955.0,0.890504]
[1722050989786,0.02308925,67956.0,67955.0,1.184816]
[1722050990237,0.12643799,67956.0,67955.0,1.184816]
[1722050990509,0.10442236,67956.0,67955.0,1.184816]
[1722050990744,0.03834412,67956.0,67955.0,1.181816]
[1722050990991,0.03834412,67956.0,67955.0,0.584192]
[1722050991241,0.02308925,67956.0,67955.0,0.006924]
[1722050991745,0.02308925,67956.0,67955.0,0.000924]
[1722050991998,0.02308925,67956.0,67955.0,0.007924]
[1722050992232,0.02308925,67956.0,67955.0,0.16708]
[1722050992504,0.04618074,67956.0,67955.0,0.15508]
[1722050992741,0.02308925,67956.0,67955.0,0.15508]
[1722050992971,0.02308925,67956.0,67955.0,0.16808]
[1722050994357,0.02392925,67956.0,67955.0,0.16808]
[1722050994579,0.02392925,67956.0,67955.0,0.020924]
[1722050995960,0.04702067,67956.0,67955.0,0.020924]
[1722050997155,0.02392925,67956.0,67955.0,0.020924]
[1722050999541,0.08602925,67956.0,67955.0,0.020924]
[1722051000252,0.17108325,67956.0,67955.0,0.020924]
[1722051000492,0.19417467,67956.0,67955.0,0.020924]
[1722051000748,0.17108325,67956.0,67955.0,0.020924]
[1722051001225,0.02392925,67956.0,67955.0,0.020924]
[1722051003126,0.17108325,67956.0,67955.0,0.020924]
[1722051003349,0.59767376,67956.0,67955.0,0.020924]
[1722051003817,0.62076529,67956.0,67955.0,0.020924]
[1722051004271,0.19417478,67956.0,67955.0,0.020924]
[1722051004526,0.32645857,67956.0,67955.0,0.020924]
[1722051005219,0.36921841,67956.0,67955.0,0.020924]
[1722051005440,0.66352641,67956.0,67955.0,0.020924]
[1722051006143,1.09763441,67956.0,67955.0,0.020924]
[1722051006389,0.96535062,67956.0,67955.0,0.020924]
[1722051007844,0.96507111,67956.0,67955.0,0.020924]
[1722051008728,0.94197958,67956.0,67955.0,0.020924]
[1722051011178,0.86432566,67956.0,67955.0,0.020924]
[1722051011859,0.86582566,67956.0,67955.0,0.020924]
[1722051012071,0.88891726,67956.0,67955.0,0.020924]
[1722051012280,0.86582566,67956.0,67955.0,0.020924]
[1722051012508,0.80222566,67956.0,67955.0,0.020924]
[1722051014356,0.80261172,67956.0,67955.0,0.020924]
[1722051015524,0.53139532,67956.0,67955.0,0.104124]
[1722051015757,0.1793506,67956.0,67955.0,0.104124]
[1722051015953,0.04702085,67956.0,67955.0,0.104124]
[1722051016578,0.02392925,67956.0,67955.0,0.25128]
[1722051017237,0.02392925,67956.0,67955.0,0.104124]
[1722051017640,0.02392925,67956.0,67955.0,0.25128]
[1722051020206,0.04702068,67956.0,67955.0,0.25128]
[1722051021058,0.02392925,67956.0,67955.0,0.25128]
[1722051021263,0.15626814,67956.0,67955.0,0.25128]
[1722051021654,0.15627424,67956.0,67955.0,0.25128]
[1722051021921,0.15627424,67956.0,67955.0,0.545592]
[1722051022513,0.02392925,67956.0,67955.0,0.545592]
[1722051024427,0.04702075,67956.0,67955.0,0.545592]
[1722051024644,0.02392925,67956.0,67955.0,0.545592]
[1722051026198,0.02392925,67956.0,67955.0,0.903004]
[1722051026423,0.02392925,67956.0,67955.0,1.64757557]
[1722051026424,0.14960804,67956.0,67955.0,1.64757557]
[1722051026657,0.04499378,67956.0,67955.0,1.77186572]
[1722051026889,0.00084,67956.0,67955.0,1.77186572]
[1722051027095,0.04499604,67956.0,67955.0,1.75186572]
[1722051027306,0.04499604,67956.0,67955.0,2.04617772]
[1722051027518,0.02392918,67956.0,67955.0,2.04617772]
[1722051027750,0.06808522,67956.0,67955.0,1.39010615]
[1722051027993,0.06808522,67956.0,67955.0,1.253816]
[1722051028275,0.02392918,67956.0,67955.0,1.37610093]
[1722051029114,0.00084,67956.0,67955.0,1.37610093]
[1722051029327,0.00084,67956.0,67955.0,1.01828893]
[1722051029562,0.04499604,67956.0,67955.0,0.910004]
[1722051029766,0.04499604,67956.0,67955.0,0.973504]
[1722051029973,0.00084,67956.0,67955.0,0.987504]
[1722051030616,0.04496892,67956.0,67955.0,0.987504]
[1722051031299,0.00084,67956.0,67955.0,0.987504]
[1722051031508,0.04497076,67956.0,67955.0,0.987504]
[1722051032421,0.06806034,67956.0,67955.0,0.987504]
[1722051032902,0.04497076,67956.0,67955.0,0.987504]
[1722051034499,0.00084,67956.0,67955.0,1.037504]
[1722051034761,0.00084,67956.0,67955.0,1.331816]
[1722051035656,0.00084,67956.0,67955.0,1.34075927]
[1722051035879,0.02392896,67956.0,67955.0,1.29075927]
[1722051036834,0.02392896,67956.0,67955.0,1.59075927]
[1722051037085,0.00084,67956.0,67955.0,1.59075927]
[1722051040281,0.02392867,67956.0,67955.0,1.59075927]
[1722051040507,0.02392867,67956.0,67955.0,1.59275927]
[1722051040717,0.00084,67956.0,67955.0,1.59275927]
[1722051041214,0.00084,67956.0,67955.0,1.88707127]
[1722051041395,0.00084,67956.0,67955.0,1.59275927]
[1722051041803,0.00084,67956.0,67955.0,1.88707127]
[1722051042163,0.00084,67956.0,67955.0,2.18138127]
[1722051043659,0.00084,67956.0,67955.0,2.33164084]
[1722051044702,0.00084,67956.0,67955.0,2.45392497]
[1722051047187,0.00084,67956.0,67955.0,2.43992497]
[1722051047610,0.00084,67956.0,67955.0,2.45392497]
[1722051048027,0.00084,67956.0,67955.0,2.43992497]
[1722051048237,0.00084,67956.0,67955.0,2.45391719]
[1722051049405,0.02392808,67956.0,67955.0,2.45391719]
[1722051050414,0.00084,67956.0,67955.0,2.45391719]
[1722051051447,0.00084,67956.0,67955.0,2.4539144]
[1722051053663,0.02392817,67956.0,67955.0,2.4539144]
[1722051057731,0.02392817,67956.0,67955.0,2.5539144]
[1722051058106,0.02392817,67956.0,67955.0,2.55391205]
[1722051059720,0.02392817,67956.0,67955.0,2.47741205]
[1722051059936,0.02392817,67956.0,67955.0,2.55391205]
[1722051060815,0.02392817,67956.0,67955.0,2.43164084]
[1722051061021,0.02392817,67956.0,67955.0,2.55391189]
[1722051061681,0.00084,67956.0,67955.0,2.55391189]
[1722051065047,0.02392748,67956.0,67955.0,2.55391189]
[1722051066153,0.00084,67956.0,67955.0,2.55391189]
[1722051066753,0.00084,67956.0,67955.0,2.84822389]
[1722051066975,0.00084,67956.0,67955.0,2.87772389]
[1722051067188,0.00084,67956.0,67955.0,2.75545284]
[1722051067387,0.02308181,67968.0,67967.0,1.62417]
[1722051067600,0.02308181,67968.0,67967.0,2.41145038]
[1722051068041,0.02308181,67968.0,67967.0,2.41345038]
[1722051069564,0.04616724,67968.0,67967.0,2.41345038]
[1722051069928,0.02308543,67968.0,67967.0,2.42745038]
[1722051070272,0.02308543,67968.0,67967.0,2.44145038]
[1722051070683,0.02308543,67968.0,67967.0,2.44144367]
[1722051073225,0.02308543,67968.0,67967.0,2.54144367]
[1722051073661,0.02308543,67968.0,67967.0,2.14814367]
[1722051073879,0.16748543,67968.0,67967.0,1.13441]
[1722051074510,0.1444,67968.0,67967.0,1.13441]
[1722051074744,0.1444,67968.0,67967.0,1.1431998]
[1722051074950,0.1444,67968.0,67967.0,1.13441]
[1722051077840,0.16748578,67968.0,67967.0,1.13441]
[1722051078544,0.02308578,67968.0,67967.0,1.42867]
[1722051078770,0.02308578,67968.0,67967.0,1.13441]
[1722051079019,0.10674318,67972.0,67971.0,0.735607]
[1722051079299,0.10674318,67972.0,67971.0,1.106347]
[1722051080446,0.10674318,67972.0,67971.0,1.119347]
[1722051080695,0.10675756,67972.0,67971.0,1.133347]
[1722051082105,0.12984282,67972.0,67971.0,1.133347]
[1722051082571,0.12984282,67972.0,67971.0,1.056847]
[1722051082782,0.12984282,67972.0,67971.0,1.133347]
[1722051083400,0.10675756,67972.0,67971.0,1.133347]
[1722051084029,0.10676717,67972.0,67971.0,1.133347]
[1722051084799,0.0627,67972.0,67971.0,1.133347]
[1722051085367,0.0757,67974.0,67971.0,1.133347]
[1722051085368,0.06610547,67973.0,67972.0,0.735595]
[1722051085606,0.08137047,67973.0,67972.0,0.735595]
[1722051086446,0.10445548,67973.0,67972.0,0.735595]
[1722051086656,0.10445548,67973.0,67972.0,0.761595]
[1722051087068,0.10445548,67973.0,67972.0,1.055833]
[1722051087271,0.02308501,67973.0,67972.0,1.198233]
[1722051087507,0.04407865,67973.0,67972.0,1.248233]
[1722051087740,0.0440794,67976.0,67975.0,0.147112]
[1722051087918,0.0440794,67976.0,67975.0,1.106292]
[1722051088362,0.0440794,67976.0,67975.0,1.400517]
[1722051088582,0.0440794,67977.0,67976.0,1.029773]
[1722051088809,0.06799849,67978.0,67977.0,0.441325]
[1722051089020,0.06799849,67978.0,67977.0,1.029762]
[1722051089224,0.02391909,67978.0,67977.0,1.029762]
[1722051090255,0.02391909,67978.0,67977.0,1.323979]
[1722051090461,0.02391909,67978.0,67977.0,1.400279]
[1722051090913,0.04700259,67978.0,67977.0,1.466379]
[1722051091153,0.02391909,67978.0,67977.0,1.529379]
[1722051092032,0.02391909,67978.0,67977.0,2.35309652]
[1722051092643,0.02391909,67978.0,67977.0,2.33309652]
[1722051092850,0.02391909,67978.0,67977.0,2.34709652]
[1722051093057,0.02391909,67978.0,67977.0,2.11109652]
[1722051094308,0.04700158,67978.0,67977.0,2.11109652]
[1722051094537,0.02391909,67978.0,67977.0,2.11109652]
[1722051095116,0.02391909,67978.0,67977.0,2.04499652]
[1722051097535,0.02391909,67978.0,67977.0,2.04499703]
[1722051097943,0.04700223,67978.0,67977.0,2.04499703]
[1722051098801,0.02391909,67978.0,67977.0,2.04499703]
[1722051100906,0.02391909,67978.0,67977.0,2.04499702]
[1722051101802,0.02391909,67978.0,67977.0,1.75078002]
[1722051102010,0.08581909,67978.0,67977.0,1.18000345]
[1722051102228,0.10890223,67978.0,67977.0,1.25650345]
[1722051102434,0.08581909,67978.0,67977.0,1.134262]
[1722051105627,0.10890291,67978.0,67977.0,1.134262]
[1722051106086,0.08581909,67978.0,67977.0,1.134262]
[1722051107311,0.08581909,67978.0,67977.0,1.25650441]
[1722051109408,0.04700291,67978.0,67977.0,1.25650441]
[1722051110223,0.04700291,67978.0,67977.0,1.33330441]
[1722051110826,0.02391909,67978.0,67977.0,1.33330441]
[1722051111038,0.02391909,67978.0,67977.0,1.33330432]
[1722051112639,0.02391909,67978.0,67977.0,1.62752132]
[1722051114247,0.0470027,67978.0,67977.0,1.62752132]
[1722051114490,0.02391909,67978.0,67977.0,1.62752132]
[1722051115512,0.02391909,67978.0,67977.0,1.67752132]
[1722051117704,0.04700228,67978.0,67977.0,1.505279]
[1722051117926,0.02391909,67978.0,67977.0,1.62751928]
[1722051120651,0.02391909,67978.0,67977.0,1.55071928]
[1722051120860,0.10491909,67978.0,67977.0,1.55072131]
[1722051121296,0.02391909,67978.0,67977.0,1.55072131]
[1722051121492,0.04700271,67978.0,67977.0,1.55072131]
[1722051121732,0.02391909,67978.0,67977.0,1.55072131]
[1722051124932,0.04700271,67978.0,67977.0,1.55072131]
[1722051125289,0.02391909,67978.0,67977.0,1.55072131]
[1722051128241,0.04700271,67978.0,67977.0,1.55072131]
[1722051128654,0.04700271,67978.0,67977.0,1.47422131]
[1722051128899,0.59272203,67978.0,67977.0,0.44446231]
[1722051129119,0.29177186,67978.0,67977.0,0.32222]
[1722051129349,0.35067522,67978.0,67977.0,0.32222]
[1722051129587,0.1804856,67978.0,67977.0,0.32222]
[1722051129790,0.3275916,67978.0,67977.0,0.32222]
[1722051130360,0.3275916,67978.0,67977.0,0.30822]
[1722051130819,0.1804856,67978.0,67977.0,0.30822]
[1722051130946,0.1804856,67978.0,67977.0,0.32222]
[1722051131154,0.1804856,67978.0,67977.0,0.545828]
[1722051131155,0.0994856,67978.0,67977.0,0.545828]
[1722051132891,0.12257045,67978.0,67977.0,0.545828]
[1722051133115,0.0994856,67978.0,67977.0,0.545828]
[1722051133531,0.0994856,67978.0,67977.0,0.840045]
[1722051133733,0.0994856,67978.0,67977.0,0.39872]
[1722051134653,0.07640651,67978.0,67977.0,0.39872]
[1722051135011,0.14214,67978.0,67977.0,0.32222]
[1722051135886,0.16522487,67978.0,67977.0,0.32222]
[1722051137266,0.14214,67978.0,67977.0,0.32222]
[1722051137756,0.289246,67978.0,67977.0,0.32222]
[1722051137957,0.583458,67978.0,67977.0,0.32222]
[1722051138133,0.289246,67978.0,67977.0,0.32222]
[1722051138469,0.583458,67978.0,67977.0,0.32222]
[1722051140526,0.60654297,67978.0,67977.0,0.32222]
[1722051141111,0.583458,67978.0,67977.0,0.32222]
[1722051143050,0.289246,67978.0,67977.0,0.32222]
[1722051144115,0.289246,67978.0,67977.0,0.30822]
[1722051144316,0.31233096,67978.0,67977.0,0.30822]
[1722051144556,0.31233096,67978.0,67977.0,0.30522]
[1722051144763,0.289246,67978.0,67977.0,0.30522]
[1722051144968,0.39935292,67978.0,67977.0,0.31922]
[1722051145142,0.289246,67978.0,67977.0,0.31922]
[1722051145371,0.39935306,67978.0,67977.0,0.31922]
[1722051147073,0.289246,67978.0,67977.0,0.31922]
[1722051147390,0.3993509,67978.0,67977.0,0.31922]
[1722051147996,0.42243582,67978.0,67977.0,0.31922]
[1722051148338,0.3993509,67978.0,67977.0,0.31922]
[1722051148455,0.289246,67978.0,67977.0,0.31922]
[1722051148661,0.3993509,67978.0,67977.0,0.31922]
[1722051148920,0.39934567,67978.0,67977.0,0.31922]
[1722051149764,0.289246,67978.0,67977.0,0.31922]
[1722051150081,0.39934567,67978.0,67977.0,0.31922]
[1722051150555,0.25223967,67978.0,67977.0,0.31922]
[1722051150808,0.0889195,67978.0,67977.0,0.31922]
[1722051151016,0.01609547,67978.0,67977.0,0.545328]
[1722051151224,0.01609547,67978.0,67977.0,0.839545]
[1722051151431,0.08215586,67978.0,67977.0,0.839545]
[1722051151666,0.03918,67978.0,67977.0,0.839545]
[1722051152896,0.10524324,67978.0,67977.0,1.198862]
[1722051153311,0.10524324,67978.0,67977.0,0.904645]
[1722051154485,0.10524324,67978.0,67977.0,1.198862]
[1722051155972,0.10524899,67978.0,67977.0,1.198862]
[1722051156378,0.18338,67978.0,67977.0,0.31922]
[1722051156595,0.18338,67978.0,67977.0,0.466328]
[1722051156791,0.29349499,67978.0,67977.0,0.31922]
[1722051157297,0.27041046,67978.0,67977.0,0.31922]
[1722051157452,0.41751646,67978.0,67977.0,0.31922]
[1722051159166,0.30740147,67978.0,67977.0,0.31922]
[1722051160297,0.33048639,67978.0,67977.0,0.31922]
[1722051160753,0.30740147,67978.0,67977.0,0.31922]
[1722051161655,0.27042552,67978.0,67977.0,0.31922]
[1722051161845,0.27042552,67978.0,67977.0,0.609728]
[1722051161846,0.01609547,67978.0,67977.0,0.609728]
[1722051162087,0.10419894,67978.0,67977.0,1.198162]
[1722051162592,0.1042045,67978.0,67977.0,1.198162]
[1722051162821,0.01609547,67978.0,67977.0,1.198162]
[1722051163499,0.1042045,67978.0,67977.0,1.198162]
[1722051163725,0.01609547,67978.0,67977.0,1.492379]
[1722051163948,0.10526832,67978.0,67977.0,1.492379]
[1722051165107,0.03917987,67978.0,67977.0,1.492379]
[1722051165548,0.0239244,67978.0,67977.0,1.492379]
[1722051165775,0.0239244,67978.0,67977.0,1.61462637]
[1722051166300,0.06798796,67978.0,67977.0,1.492379]
[1722051166791,0.06798796,67978.0,67977.0,1.481379]
[1722051167262,0.0239244,67978.0,67977.0,1.60362662]
[1722051167489,0.06798796,67978.0,67977.0,1.481379]
[1722051167740,0.0239244,67978.0,67977.0,1.481379]
[1722051167998,0.0239244,67978.0,67977.0,1.50396078]
[1722051168198,0.00084,67978.0,67977.0,1.50396078]
[1722051171526,0.02392329,67978.0,67977.0,1.50396078]
[1722051171742,0.04491481,67978.0,67977.0,1.50396078]
[1722051171959,0.04491481,67978.0,67977.0,1.62620723]
[1722051172578,0.04491481,67978.0,67977.0,1.50396078]
[1722051172793,0.04491652,67978.0,67977.0,1.50396078]
[1722051173001,0.04491652,67978.0,67977.0,1.62620608]
[1722051173212,0.00084,67978.0,67977.0,1.62620608]
[1722051173703,0.00084,67978.0,67977.0,1.67620608]
[1722051175697,0.02392266,67978.0,67977.0,1.67620608]
[1722051176332,0.02392266,67978.0,67977.0,1.67619991]
[1722051177439,0.02392266,67978.0,67977.0,1.62619991]
[1722051177636,0.02392266,67978.0,67977.0,2.12067648]
[1722051178238,0.02392266,67978.0,67977.0,2.37067648]
[1722051178413,0.02392266,67978.0,67977.0,2.37267648]
[1722051179614,0.02392266,67978.0,67977.0,2.25043735]
[1722051179811,0.02392266,67978.0,67977.0,2.3706751]
[1722051180183,0.00084,67978.0,67977.0,2.3706751]
[1722051181649,0.00084,67978.0,67977.0,2.3726751]
[1722051182090,0.00084,67978.0,67977.0,2.25043735]
[1722051182234,0.00084,67978.0,67977.0,2.37267477]
[1722051183247,0.02392239,67978.0,67977.0,2.37267477]
[1722051184679,0.02392239,67978.0,67977.0,2.37067477]
[1722051184923,0.00084,67978.0,67977.0,2.37067477]
[1722051185445,0.00084,67978.0,67977.0,2.24843735]
[1722051185644,0.00084,67978.0,67977.0,2.37067249]
[1722051185866,0.00084,67978.0,67977.0,2.47067249]
[1722051186272,0.00084,67978.0,67977.0,2.47267249]
[1722051187243,0.00084,67978.0,67977.0,2.47067249]
[1722051187447,0.02392184,67978.0,67977.0,2.47067249]
[1722051188228,0.00084,67978.0,67977.0,2.47067249]
[1722051188936,0.00084,67978.0,67977.0,2.47266665]
[1722051189943,0.00084,67978.0,67977.0,2.45866665]
[1722051190537,0.00084,67978.0,67977.0,2.47266665]
[1722051191699,0.02392191,67978.0,67977.0,2.47266665]
[1722051192343,0.02392191,67978.0,67977.0,2.47066677]
[1722051194302,0.02392191,67978.0,67977.0,2.22066677]
[1722051194723,0.00084,67978.0,67977.0,2.22066677]
[1722051195591,0.00084,67978.0,67977.0,2.09843735]
[1722051195813,0.00084,67978.0,67977.0,2.22066688]
[1722051197269,0.00084,67978.0,67977.0,2.47066688]
[1722051197493,0.00084,67978.0,67977.0,2.22066688]
[1722051197699,0.00084,67978.0,67977.0,2.47066688]
[1722051198121,0.02392236,67978.0,67977.0,2.47066688]
[1722051198327,0.02392236,67978.0,67977.0,2.54716688]
[1722051200881,0.00084,67978.0,67977.0,2.54716688]
[1722051205678,0.00084,67978.0,67977.0,1.58279031]
[1722051205931,0.00084,67978.0,67977.0,1.3650775]
[1722051206183,0.14664,67978.0,67977.0,1.1885775]
[1722051207474,0.14664,67978.0,67977.0,1.06634378]
[1722051208262,0.14664,67978.0,67977.0,1.18858672]
[1722051208443,0.16972388,67978.0,67977.0,1.18858672]
[1722051209114,0.16972388,67978.0,67977.0,1.06634378]
[1722051209682,0.09032388,67978.0,67977.0,1.06634378]
[1722051211963,0.09032388,67978.0,67977.0,1.05234378]
[1722051212106,0.09032388,67978.0,67977.0,1.06634378]
[1722051212515,0.09032388,67978.0,67977.0,1.05234378]
[1722051213143,0.09032388,67978.0,67977.0,1.34656078]
[1722051213343,0.06724,67978.0,67977.0,1.34656078]
[1722051213815,0.06724,67978.0,67977.0,1.36056078]
[1722051214306,0.06724,67978.0,67977.0,1.06634378]
[1722051220271,0.06724,67978.0,67977.0,1.14284378]
[1722051220484,0.06724,67978.0,67977.0,1.43706078]
[1722051220787,0.06724,67978.0,67977.0,1.14284378]
[1722051220994,0.09032371,67978.0,67977.0,1.14284378]
[1722051222701,0.02392371,67978.0,67977.0,1.43706078]
[1722051223164,0.02392371,67978.0,67977.0,1.14284378]
[1722051223567,0.02392371,67978.0,67977.0,1.43706078]
[1722051224251,0.02392371,67978.0,67977.0,1.14284378]
[1722051225759,0.00084,67978.0,67977.0,1.14284378]
[1722051228699,0.02392367,67978.0,67977.0,1.14284378]
[1722051229841,0.00084,67978.0,67977.0,1.14284378]
[1722051233239,0.02392363,67978.0,67977.0,1.14284378]
[1722051233639,0.00084,67978.0,67977.0,1.14284378]
[1722051235012,0.00084,67978.0,67977.0,1.22274378]
[1722051237596,0.00084,67978.0,67977.0,1.51696078]
[1722051237796,0.00084,67978.0,67977.0,1.22274378]
[1722051238046,0.00084,67978.0,67977.0,1.51696078]
[1722051238869,0.0239235,67978.0,67977.0,1.51696078]
[1722051239201,0.00084,67978.0,67977.0,1.51696078]
[1722051240239,0.04489379,67978.0,67977.0,1.51696078]
[1722051240607,0.00084,67978.0,67977.0,1.51696078]
[1722051241895,0.0239235,67978.0,67977.0,1.51696078]
[1722051242306,0.00084,67978.0,67977.0,1.51696078]
[1722051244173,0.00084,67978.0,67977.0,1.72962035]
[1722051245662,0.02392294,67978.0,67977.0,1.72962035]
[1722051246695,0.00084,67978.0,67977.0,1.72962035]
[1722051249993,0.00084,67978.0,67977.0,1.85186035]
[1722051252928,0.04493859,67978.0,67977.0,1.85186094]
[1722051253061,0.00084,67978.0,67977.0,1.85186094]
[1722051254519,0.02392299,67978.0,67977.0,1.85186094]
[1722051255511,0.00084,67978.0,67977.0,1.85186094]
[1722051256387,0.00084,67978.0,67977.0,1.85185936]
[1722051258803,0.02392294,67978.0,67977.0,1.85185936]
[1722051259615,0.02392294,67978.0,67977.0,1.72962035]
[1722051259817,0.02392294,67978.0,67977.0,1.85185866]
[1722051263134,0.02392294,67978.0,67977.0,2.44807087]
[1722051263340,0.02392294,67978.0,67977.0,2.54807087]
[1722051263560,0.00084,67978.0,67977.0,1.51873687]
[1722051263770,0.00084,67978.0,67977.0,1.1885773]
[1722051263985,0.00084,67978.0,67977.0,0.88577852]
[1722051264202,0.00084,67978.0,67977.0,1.17999552]
[1722051264656,0.0669646,67978.0,67977.0,0.88577852]
[1722051265292,0.286146,67978.0,67977.0,0.44445352]
[1722051265498,0.580358,67978.0,67977.0,0.32222]
[1722051265705,0.87457,67978.0,67977.0,0.32222]
[1722051265936,1.30105646,67978.0,67977.0,0.32222]
[1722051266144,1.168782,67978.0,67977.0,0.32222]
[1722051266355,1.20730002,67978.0,67977.0,0.30822]
[1722051266588,1.20730002,67978.0,67977.0,0.30522]
[1722051266800,1.23038637,67978.0,67977.0,0.30522]
[1722051266978,1.23038637,67978.0,67977.0,0.31922]
[1722051267224,1.23038637,67978.0,67977.0,0.30822]
[1722051267460,1.23038637,67978.0,67977.0,0.31322]
[1722051268444,1.52459837,67978.0,67977.0,0.31322]
[1722051268680,1.54759837,67978.0,67977.0,0.31322]
[1722051268915,1.54759837,67978.0,67977.0,0.29922]
[1722051269360,1.54729554,67978.0,67977.0,0.29922]
[1722051270059,1.54729554,67978.0,67977.0,0.31022]
[1722051271782,1.52420919,67978.0,67977.0,0.31022]
[1722051272335,1.61785964,67978.0,67977.0,0.31022]
[1722051272698,1.69435964,67978.0,67977.0,0.31022]
[1722051274346,1.268282,67978.0,67977.0,0.31022]
[1722051274551,1.191782,67978.0,67977.0,0.31022]
[1722051274750,1.268282,67978.0,67977.0,0.31022]
[1722051274961,1.29136912,67978.0,67977.0,0.31022]
[1722051275194,1.268282,67978.0,67977.0,0.31022]
[1722051278703,1.327257,67978.0,67977.0,0.31022]
[1722051279023,1.35034454,67978.0,67977.0,0.31022]
[1722051280970,1.327257,67978.0,67977.0,0.31022]
[1722051281612,1.250757,67978.0,67977.0,0.31022]
[1722051281860,1.227757,67978.0,67977.0,0.31022]
[1722051283070,1.27551502,67978.0,67977.0,0.31022]
[1722051283309,2.03164999,67978.0,67977.0,0.31022]
[1722051283518,2.10814999,67978.0,67977.0,0.31022]
[1722051283739,2.28066958,67978.0,67977.0,0.2473198]
[1722051283941,2.39565672,67978.0,67977.0,0.23833867]
[1722051284149,2.46893187,67978.0,67977.0,0.23333867]